[Event "1st Chessable Sunway Formentera 2022"]
[Site "Formentera Punta Prima"]
[Date "2022.04.30"]
[Round "2"]
[White "Sasikiran, Krishnan"]
[Black "Song, Julien"]
[Result "1/2-1/2"]
[ECO "C42"]
[WhiteElo "2651"]
[BlackElo "2388"]
[Annotator "TA"]
[PlyCount "65"]
[EventDate "2022.05.05"]
[EventType "swiss"]
[EventCountry "ESP"]
[SourceTitle "playchess.com"]
[Source "ChessBase"]
[SourceQuality "1"]
[TimeControl "40/5400+30:1800+30"]

{[%evp 13,65,34,20,22,18,13,31,27,25,0,13,0,20,14,18,12,16,8,23,16,20,18,11,16,26,12,14,9,36,36,36,36,37,42,42,40,40,23,37,37,50,0,4,0,5,4,7,0,0,0,8,0,0,0]} 1. e4 {[%emt 0:00:13]} e5 {[%emt 0:00:22]} 2. Nf3 {[%emt 0:00:11]} Nf6 {[%emt 0:00:14]} 3. Nxe5 {[%emt 0:00:17]} d6 {[%emt 0:00:15]} 4. Nf3 {[%emt 0:00:08]} Nxe4 {[%emt 0:00:14]} 5. Nc3 {[%emt 0:00:11]} Nxc3 {[%emt 0:00:27]} 6. dxc3 {[%emt 0:00:09]} Be7 {[%emt 0:00:59]} 7. Be3 {[%emt 0:00:15]} O-O {[%emt 0:00:47]} 8. Qd2 {[%emt 0:00:35] C42: Petroff Defence: 3 Nxe5 and unusual White 3rd moves.} Nd7 {[%emt 0:01:09]} 9. O-O-O {[%emt 0:00:26]} Nf6 {[%emt 0:00:45]} 10. Bd3 {[%emt 0:00:17] White is slightly better.} Re8 {[%emt 0:01:03]} 11. Rhe1 {[%emt 0:00:15]} Bg4 {[%emt 0:01:20]} 12. Bg5 {[%emt 0:00:18]} Nd7 {[%emt 0:02:31]} 13. h4 {[%emt 0:01:16]} Nc5 {[%emt 0:04:00]} 14. Bc4 {[%emt 0:01:03][%cal Oc4f7] [#] And now Bxf7+! would win.} Ne6 {[%emt 0:01:26]} 15. Bxe7 {[%emt 0:01:36]} Qxe7 {[%emt 0:01:20]} 16. Bxe6 {[%emt 0:00:37]} fxe6 {[%emt 0:11:32]} 17. Qf4 $1 {[%emt 0:00:15]} Bxf3 {[%emt 0:01:50]} 18. Qxf3 {[%emt 0:00:15] [#]} Rab8 $146 {[%emt 0:19:45]} ({Predecessor:} 18... b6 19. Re4 Qf7 20. Qe2 e5 21. b3 a5 22. a4 Re6 23. f3 Rf6 24. Qb5 h6 {½-½ (65) Schuetze,M (2490)-Dunlop,G (2536) GER email 2019}) 19. Qe4 {[%emt 0:20:51]} e5 {[%emt 0:05:44]} 20. b3 {[%emt 0:08:58]} Rf8 {[%emt 0:10:31][%cal Be8f8,Bf8f7,Bf7e7,Be7e2][%mdl 32]} 21. f4 {[%emt 0:12:52][%cal Rf4e5]} Qxh4 {[%emt 0:07:09]} 22. Qd5+ {[%emt 0:01:01]} Rf7 $1 {[%emt 0:00:15]} 23. fxe5 {[%emt 0:03:43]} dxe5 {[%emt 0:00:33]} 24. Kb2 {[%emt 0:09:13]} c6 {[%emt 0:03:13]} 25. Qd6 {[%emt 0:10:44]} Re8 {[%emt 0:06:40]} 26. Rxe5 {[%emt 0:05:53]} Rfe7 {[%emt 0:00:56]} 27. Rf5 {[%emt 0:04:04]} (27. Rxe7 $14 Qxe7 28. Qd4) 27... Re2 $11 {[%emt 0:05:44] The position is equal.} 28. Rdf1 {[%emt 0:10:14][%cal Od6f8] [#] White wants to mate with Qf8+!} Qe7 {[%emt 0:04:32] Inhibits Qf8+.} 29. Qf4 {[%emt 0:03:17] Strongly threatening Rf7.} Re4 $1 {[%emt 0:04:23]} 30. Qf2 {[%emt 0:01:47] Rf7 is the strong threat.} Re2 {[%emt 0:00:48]} 31. Qf4 {[%emt 0:00:12]} Re4 $1 {[%emt 0:00:04]} 32. Qf2 {[%emt 0:01:45] Threatens to win with Rf7.} Re2 {[%emt 0:00:03]} 33. Qf4 {[%emt 0:00:11] Weighted Error Value: White=0.06 (flawless) /Black=0.04 (flawless)} 1/2-1/2

[Event "1st Chessable Sunway Formentera 2022"]
[Site "Formentera Punta Prima"]
[Date "2022.04.30"]
[Round "2"]
[White "Santos Ruiz, Miguel"]
[Black "Chkhaidze, Nikoloz"]
[Result "1-0"]
[ECO "A09"]
[WhiteElo "2586"]
[BlackElo "2301"]
[Annotator "TA"]
[PlyCount "75"]
[EventDate "2022.05.05"]
[EventType "swiss"]
[EventCountry "ESP"]
[SourceTitle "playchess.com"]
[Source "ChessBase"]
[SourceQuality "1"]
[TimeControl "40/5400+30:1800+30"]

{[%evp 9,75,-9,0,-8,-11,-16,1,2,47,43,46,42,39,42,47,35,39,41,41,37,30,31,77,83,121,132,126,129,154,162,387,398,421,400,540,533,493,390,406,404,372,327,330,305,437,328,333,325,315,317,314,250,256,253,349,343,348,341,334,339,383,368,352,348,391,383,661,662]} 1. Nf3 {[%emt 0:00:07]} d5 {[%emt 0:01:37]} 2. g3 {[%emt 0:00:06]} g6 {[%emt 0:01:08]} 3. c4 {[%emt 0:00:23]} dxc4 {[%emt 0:00:46]} 4. Na3 {[%emt 0:00:06]} Bg7 {[%emt 0:01:40]} 5. Nxc4 {[%emt 0:00:09]} Nc6 {[%emt 0:00:54]} 6. d3 {[%emt 0:02:34] A09: Réti Opening: 1 Nf3 d5 2 c4.} e5 {[%emt 0:01:50][%cal Oe5e4]} 7. Bd2 {[%emt 0:01:08][%cal Bc1d2,Bd2c3,Bc3d4][%mdl 32]} Be6 {[%emt 0:05:15]} 8. Rc1 {[%emt 0:09:42] [#] The position is equal.} Nf6 $146 {[%emt 0:04:12]} ({Predecessor:} 8... Nge7 9. Bg2 a5 10. a3 a4 11. O-O O-O 12. Bc3 f6 13. e4 Qd7 14. Qc2 Rfd8 {1-0 (48) Praggnanandhaa,R (2619)-Nakamura,H (2750) Chess.com INT 2022}) 9. Ncxe5 {[%emt 0:10:29]} Nxe5 {[%emt 0:02:32]} 10. Nxe5 {[%emt 0:00:14]} Qd5 {[%emt 0:02:23]} 11. Nf3 {[%emt 0:02:17]} Qxa2 {[%emt 0:01:10]} 12. Bc3 {[%emt 0:06:34]} ({Of course not} 12. Rxc7 Bb3 13. Qc1 O-O $11) 12... O-O {[%emt 0:01:52]} 13. Bg2 {[%emt 0:00:53]} Bb3 {[%emt 0:39:20]} 14. Qd2 {[%emt 0:17:29]} Rad8 {[%emt 0:04:08]} 15. Bd4 {[%emt 0:01:25]} Qa4 {[%emt 0:05:11]} (15... Bd5 $14 16. e3 Nh5) 16. e3 $16 {[%emt 0:02:02] Black is on the road to losing.} b6 {[%emt 0:07:31]} 17. Rxc7 {[%emt 0:03:33]} Nd5 {[%emt 0:00:42]} 18. Rc1 {[%emt 0:07:07]} Nb4 {[%emt 0:04:13]} 19. O-O {[%emt 0:00:11][%cal Bh1f1,Bf1c1,Bc1c7][%mdl 32]} Bc2 $2 {[%emt 0:02:26] [#]} (19... Bxd4 {is a better defense.} 20. Nxd4 a5) 20. Ra1 $18 {[%emt 0:06:27]} Qb5 {[%emt 0:01:20]} 21. Rfc1 {[%emt 0:01:42]} Bxd3 {[%emt 0:01:55]} 22. Bxg7 {[%emt 0:00:16]} Kxg7 {[%emt 0:00:56]} 23. Nd4 {[%emt 0:00:10]} Rxd4 {[%emt 0:01:10]} 24. exd4 {[%emt 0:00:07]} a5 {[%emt 0:00:27]} 25. Rc7 {[%emt 0:02:58]} Bc4 {[%emt 0:01:01]} 26. Rc1 {[%emt 0:01:35]} Bd5 {[%emt 0:02:10]} (26... Be6 $142 27. Re1 Qf5) 27. Bf1 {[%emt 0:00:27]} Qe8 {[%emt 0:01:26]} 28. Qf4 {[%emt 0:01:01]} Qd8 {[%emt 0:00:44]} 29. Qe5+ {[%emt 0:02:16]} Kg8 {[%emt 0:00:14]} 30. Qe7 {[%emt 0:01:24]} Be6 {[%emt 0:02:54]} 31. Bc4 {[%emt 0:02:04]} Bxc4 {[%emt 0:02:09]} 32. Qxd8 {[%emt 0:00:14]} Rxd8 {[%emt 0:00:01]} 33. R1xc4 {[%emt 0:00:15] KRR-KRN} Rd6 {[%emt 0:01:05]} 34. Rb7 {[%emt 0:01:24]} Nd5 {[%emt 0:00:15]} 35. Kg2 {[%emt 0:17:55]} Kg7 {[%emt 0:00:07]} 36. Rc8 {[%emt 0:00:00]} h5 {[%emt 0:00:34]} 37. h4 {[%emt 0:00:00]} Nf6 $2 {[%emt 0:00:55] [#]} (37... Re6 38. Rcb8 Rd6) 38. Rcc7 {[%emt 0:00:00] Weighted Error Value: White=0.12 (very precise) /Black=0.36} 1-0

[Event "1st Chessable Sunway Formentera 2022"]
[Site "Formentera Punta Prima"]
[Date "2022.04.30"]
[Round "2"]
[White "Yankelevich, Lev"]
[Black "Mouhamad, Joachim"]
[Result "1-0"]
[ECO "D30"]
[WhiteElo "2473"]
[BlackElo "2290"]
[Annotator "TA"]
[PlyCount "95"]
[EventDate "2022.05.05"]
[EventType "swiss"]
[EventCountry "ESP"]
[SourceTitle "playchess.com"]
[Source "ChessBase"]
[SourceQuality "1"]
[TimeControl "40/5400+30:1800+30"]

{[%evp 9,95,21,35,30,37,35,29,22,22,29,34,28,41,45,50,64,56,64,67,47,48,52,81,51,66,83,110,100,110,108,171,171,168,158,162,161,152,154,170,179,189,201,197,193,200,186,216,220,236,235,227,228,230,206,232,230,275,255,295,320,325,325,330,327,329,330,331,319,321,331,357,357,355,325,386,0,337,312,442,460,531,539,533,525,525,503,497,485]} 1. Nf3 {[%emt 0:00:08]} d5 {[%emt 0:00:10]} 2. d4 {[%emt 0:00:08]} e6 {[%emt 0:00:13]} 3. c4 {[%emt 0:00:03]} a6 {[%emt 0:00:19]} 4. Bg5 {[%emt 0:00:04]} Be7 {[%emt 0:00:56]} 5. Bxe7 {[%emt 0:00:09]} Nxe7 {[%emt 0:00:12]} 6. Nbd2 {[%emt 0:00:04] D30: Queen's Gambit Declined: Systems without Nc3.} Nd7 {[%emt 0:01:55]} 7. g3 {[%emt 0:07:28]} b6 {[%emt 0:06:23]} 8. cxd5 {[%emt 0:06:11] White has an edge.} exd5 {[%emt 0:01:30]} 9. Bg2 {[%emt 0:00:08]} O-O {[%emt 0:01:37]} 10. O-O {[%emt 0:00:06] [#]} Bb7 $146 {[%emt 0:03:17]} ({Predecessor:} 10... Nf6 11. Rc1 Bf5 12. b4 Qd6 13. Qb3 Rfc8 14. e3 a5 15. b5 a4 16. Qb2 Bd3 {1-0 (37) Giri,A (2764)-Grandelius,N (2663) Chess.com INT 2020}) 11. b4 {[%emt 0:05:07]} c5 {[%emt 0:11:55]} 12. bxc5 {[%emt 0:03:47]} bxc5 {[%emt 0:00:03]} 13. dxc5 {[%emt 0:11:07]} Nxc5 {[%emt 0:00:17]} 14. Nb3 {[%emt 0:00:21]} Ne4 {[%emt 0:00:58]} 15. Rc1 {[%emt 0:03:03]} Qb6 {[%emt 0:09:21]} 16. Qd4 {[%emt 0:00:19]} Qxd4 {[%emt 0:00:17]} 17. Nfxd4 {[%emt 0:00:08] Strongly threatening Rc7. White now steadily converts the win.} Rac8 {[%emt 0:05:30] Inhibits Rc7.} 18. Na5 {[%emt 0:15:13]} Ba8 {[%emt 0:07:11]} 19. Bh3 {[%emt 0:00:50]} f5 {[%emt 0:02:59] [#]} (19... Rb8 $16) 20. Nxf5 $1 {[%emt 0:08:00][%mdl 512]} Nxf5 {[%emt 0:07:30]} 21. Bxf5 {[%emt 0:00:32]} Rce8 {[%emt 0:08:05] Prevents Be6+.} 22. Bd7 {[%emt 0:03:05]} Re7 {[%emt 0:01:49]} 23. Bc6 {[%emt 0:00:20]} Bxc6 {[%emt 0:05:47]} 24. Nxc6 {[%emt 0:00:24]} ({Weaker is} 24. Rxc6 Nd2 25. Nb3 Nxf1 26. Kxf1 Rf6 $15) 24... Rc7 {[%emt 0:09:25] [#]} 25. f3 $1 {[%emt 0:00:17]} Nf6 {[%emt 0:01:55]} 26. Rc2 {[%emt 0:02:39]} Re8 {[%emt 0:01:20]} 27. Rb1 {[%emt 0:07:18]} h5 {[%emt 0:02:33]} 28. Rbb2 {[%emt 0:03:50]} Kh7 {[%emt 0:00:57]} 29. Nb4 {[%emt 0:03:13][%csl LRa6,LRc7]} Rxc2 {[%emt 0:02:11]} 30. Rxc2 $18 {[%emt 0:02:32][%mdl 4096] Endgame KRN-KRN} a5 {[%emt 0:00:44]} 31. Nc6 {[%emt 0:00:04]} a4 {[%emt 0:01:40]} 32. Kf2 {[%emt 0:00:08]} Re6 {[%emt 0:00:56]} 33. Rc5 {[%emt 0:02:51]} Rd6 {[%emt 0:05:15]} 34. Nd4 {[%emt 0:00:14]} Rb6 {[%emt 0:00:51]} 35. Rb5 {[%emt 0:00:06] Against Rb2} Ra6 {[%emt 0:00:51]} 36. h4 {[%emt 0:00:16]} Ra7 {[%emt 0:00:22]} 37. Ne6 {[%emt 0:02:16]} a3 {[%emt 0:01:04]} 38. Nd4 {[%emt 0:03:26]} Ra4 {[%emt 0:00:23]} 39. Ke3 {[%emt 0:00:42]} Kg6 {[%emt 0:00:47]} 40. Rb7 {[%emt 0:00:00]} Ra6 {[%emt 0:00:00]} 41. Rc7 {[%emt 0:12:01]} Ra8 {[%emt 0:13:13]} 42. Rb7 {[%emt 0:02:10]} Ra6 $1 {[%emt 0:00:29]} 43. Kd3 {[%emt 0:00:43]} Ra4 {[%emt 0:04:53]} (43... Ng8 $142 44. e3 Nf6) 44. Ne6 {[%emt 0:02:17] White is clearly winning.} Ra6 {[%emt 0:02:41]} 45. Rxg7+ {[%emt 0:03:54]} Kh6 {[%emt 0:00:26]} 46. Re7 {[%emt 0:00:04]} Ng8 {[%emt 0:00:31]} 47. Re8 {[%emt 0:00:47]} Nf6 {[%emt 0:00:17]} 48. Rh8+ {[%emt 0:00:12] Weighted Error Value: White=0.14 (very precise) /Black=0.16 (very precise)} 1-0

[Event "1st Chessable Sunway Formentera 2022"]
[Site "Formentera Punta Prima"]
[Date "2022.04.30"]
[Round "2"]
[White "Narciso Dublan, Marc"]
[Black "Papadiamandis, Elliot"]
[Result "0-1"]
[ECO "A48"]
[WhiteElo "2464"]
[BlackElo "2373"]
[Annotator "TA"]
[PlyCount "100"]
[EventDate "2022.05.05"]
[EventType "swiss"]
[EventCountry "ESP"]
[SourceTitle "playchess.com"]
[Source "ChessBase"]
[SourceQuality "1"]
[TimeControl "40/5400+30:1800+30"]

{[%evp 17,100,0,0,-9,0,0,0,0,0,0,4,0,6,0,13,0,9,0,4,-27,2,-50,-58,-48,-42,-75,-75,-52,-52,-187,-192,-153,-179,-422,-433,-421,-432,-431,-427,-398,-308,-295,-265,-267,-286,-247,-261,-258,-271,-361,-361,-345,-262,-319,-308,-313,-304,-403,-395,-388,-372,-626,-625,-1213,-650,-675,-675,-655,-616,-643,-620,-644,-608,-721,-613,-690,-697,-652,-651,-675,-632,-729,-644,-661,-481]} 1. d4 {[%emt 0:00:03]} Nf6 {[%emt 0:00:08]} 2. Nf3 {[%emt 0:00:10]} g6 {[%emt 0:00:16]} 3. Bg5 {[%emt 0:00:14]} Bg7 {[%emt 0:00:10]} 4. Nbd2 {[%emt 0:00:15]} O-O {[%emt 0:00:57]} 5. c3 {[%emt 0:00:09]} d6 {[%emt 0:00:23]} 6. e4 {[%emt 0:00:10]} c5 {[%emt 0:00:10]} 7. dxc5 {[%emt 0:00:35]} dxc5 {[%emt 0:00:07]} 8. Be2 {[%emt 0:00:28]} Nc6 {[%emt 0:00:31]} 9. O-O {[%emt 0:00:14]} Qc7 {[%emt 0:01:03]} 10. Re1 {[%emt 0:07:47] A48: 1 d4 Nf6 2 Nf3 g6: Torre, London and Colle Systems.} h6 {[%emt 0:08:27]} 11. Be3 {[%emt 0:00:22]} b6 {[%emt 0:01:14]} 12. h3 {[%emt 0:00:10] The position is equal.} Bb7 {[%emt 0:09:38]} 13. Qc2 {[%emt 0:00:32]} Rad8 {[%emt 0:02:51]} 14. Rad1 {[%emt 0:00:48]} Nh5 {[%emt 0:02:25]} (14... g5 $5 {[%cal Re7e6]}) 15. Bf1 {[%emt 0:02:58] [#]} Kh7 $146 {[%emt 0:05:51]} ({Predecessor:} 15... e6 16. a4 Ne5 17. Be2 Nxf3+ 18. Nxf3 Nf4 19. Bf1 Kh7 20. g3 Nh5 21. Bg2 Nf6 {1-0 (65) Terry,R (2451)-Gabrielian,A (2545) Chess.com INT 2015}) 16. Nc4 {[%emt 0:05:21]} Nf6 {[%emt 0:20:13][%cal Bh5f6,Bf6d5,Bd5f4][%mdl 32]} 17. Bc1 {[%emt 0:03:32]} b5 {[%emt 0:03:07]} 18. Ne3 {[%emt 0:01:38]} c4 {[%emt 0:09:56]} 19. e5 {[%emt 0:29:24]} ({White should play} 19. b3 $11) 19... Rxd1 $1 $15 {[%emt 0:09:34]} (19... Nxe5 20. Nxe5 Qxe5 21. Nxc4 $1 $14) 20. Nxd1 {[%emt 0:03:49]} Nd5 {[%emt 0:00:14][%cal Rc6e5]} 21. e6 {[%emt 0:10:02]} f5 {[%emt 0:02:10]} 22. Ne3 {[%emt 0:04:20]} Nf4 {[%emt 0:03:49]} 23. b3 {[%emt 0:02:10] Now White is beyond hope.} (23. Rd1 $15) 23... Ne5 $19 {[%emt 0:01:08]} 24. Nxe5 {[%emt 0:04:17]} Bxe5 {[%emt 0:00:19]} ({Worse is} 24... Qxe5 25. bxc4 bxc4 26. Qd2 $15) 25. bxc4 {[%emt 0:08:31] [#]} (25. f3) 25... Nxh3+ $1 {[%emt 0:01:15][%mdl 512]} 26. Kh1 {[%emt 0:00:04] [#]} Nxf2+ $1 {[%emt 0:00:47][%mdl 512]} 27. Qxf2 {[%emt 0:00:41] Strongly threatening Nd5.} Bg3 {[%emt 0:00:05]} 28. Qe2 {[%emt 0:06:08]} Qf4 {[%emt 0:01:23]} 29. Ng4 {[%emt 0:00:24]} Qxg4 {[%emt 0:00:46]} 30. Qxg4 {[%emt 0:00:06]} fxg4 {[%emt 0:00:06]} 31. Rd1 {[%emt 0:00:06]} bxc4 {[%emt 0:08:00][%cal Ob7d5]} 32. Be3 {[%emt 0:00:35] [#]} Bd5 {[%emt 0:04:41][%mdl 512]} 33. Bxa7 {[%emt 0:07:31]} (33. Kg1 Bxe6) 33... Bxe6 {[%emt 0:00:01]} 34. Bd4 {[%emt 0:00:33]} Bd5 {[%emt 0:03:48]} 35. Be2 {[%emt 0:00:37]} h5 {[%emt 0:00:35][%cal Bh6h5,Bh5h4][%mdl 32]} 36. a4 {[%emt 0:02:42]} e6 {[%emt 0:00:29] White must now prevent ...Rb8.} 37. a5 {[%emt 0:00:24]} Bf2 {[%emt 0:00:33]} ({Not} 37... Ra8 $2 38. Ra1 $19) 38. Rf1 {[%emt 0:00:53] [#]} g3 {[%emt 0:00:05]} ({Weaker is} 38... Bxd4 39. Rxf8 Bxc3 40. a6 $18) 39. a6 $2 {[%emt 0:00:27]} (39. Bb6) 39... h4 {[%emt 0:01:57] Black is clearly winning.} 40. Bg4 {[%emt 0:00:00]} Ra8 {[%emt 0:00:00] Hoping for ...Bxd4.} 41. Bxf2 {[%emt 0:00:53]} gxf2 {[%emt 0:00:40]} 42. Rxf2 {[%emt 0:01:28]} Rxa6 {[%emt 0:00:07][%mdl 4096] Endgame KRB-KRB} 43. Kh2 {[%emt 0:02:52]} Ra3 {[%emt 0:06:02]} 44. Rc2 {[%emt 0:01:22]} Kh6 {[%emt 0:01:42]} 45. Kh3 {[%emt 0:03:26]} Kg5 {[%emt 0:04:13] ( -> ...Ra1)} 46. g3 {[%emt 0:00:14]} hxg3 {[%emt 0:00:17]} 47. Kxg3 {[%emt 0:00:06]} Ra1 {[%emt 0:03:41] Threatens to win with ...Rg1+.} 48. Be2 {[%emt 0:01:20]} Be4 {[%emt 0:00:50]} 49. Rb2 {[%emt 0:01:17]} Rc1 {[%emt 0:00:11]} 50. Rb5+ {[%emt 0:00:37]} Bd5 {[%emt 0:00:44] Weighted Error Value: White=0.52/Black=0.20 (precise)} 0-1

[Event "1st Chessable Sunway Formentera 2022"]
[Site "Formentera Punta Prima"]
[Date "2022.04.30"]
[Round "2"]
[White "Park, Evan"]
[Black "Aledo Yanguas, David"]
[Result "1-0"]
[ECO "C11"]
[WhiteElo "2431"]
[BlackElo "1908"]
[Annotator "TA"]
[PlyCount "79"]
[EventDate "2022.05.05"]
[EventType "swiss"]
[EventCountry "ESP"]
[SourceTitle "playchess.com"]
[Source "ChessBase"]
[SourceQuality "1"]
[TimeControl "40/5400+30:1800+30"]

{[%evp 16,78,20,-13,0,-6,22,15,54,61,82,79,101,90,243,235,221,234,220,170,179,169,147,111,114,107,124,112,106,116,116,104,564,593,907,128,130,132,138,154,160,130,119,126,158,170,270,161,666,649,991,424,2860,2794,2581,2506,29987,2088,29995,29996,29996,29997,29997,29997,29999]} 1. e4 {[%emt 0:00:02]} e6 {[%emt 0:00:05]} 2. d4 {[%emt 0:00:11]} d5 {[%emt 0:00:09]} 3. Nc3 {[%emt 0:00:03]} Nf6 {[%emt 0:00:05]} 4. e5 {[%emt 0:00:02]} Nfd7 {[%emt 0:00:05]} 5. f4 {[%emt 0:00:02]} c5 {[%emt 0:00:05]} 6. Nf3 {[%emt 0:00:03]} Nc6 {[%emt 0:00:03]} 7. Be3 {[%emt 0:00:04]} a6 {[%emt 0:00:04]} 8. Qd2 {[%emt 0:00:24]} b5 {[%emt 0:00:05][%cal Bb7b5,Bb5b4][%mdl 32]} 9. h4 {[%emt 0:00:48][%cal Bh2h4,Bh4h5][%mdl 32]} b4 {[%emt 0:00:51] C11: French: Classical System: 4 e5 and 4 Bg5 dxe4.} 10. Na4 {[%emt 0:00:25]} c4 {[%emt 0:01:13]} 11. b3 {[%emt 0:02:52]} c3 {[%emt 0:02:42] The position is equal.} 12. Qf2 {[%emt 0:00:13]} a5 {[%emt 0:00:51]} 13. h5 {[%emt 0:05:45] [#]} Nb6 $146 {[%emt 0:04:43]} ({Predecessor:} 13... Ba6 14. f5 exf5 15. Ng5 Be7 16. e6 Bxg5 17. exd7+ Kf8 18. Bxg5 Qxg5 19. Bxa6 Rxa6 {½-½ (41) Alsina Leal,D (2516)-Libiszewski,F (2522) Linares 2021}) 14. Nc5 {[%emt 0:02:35][%cal Of4f5] f5! is the strong threat.} Bxc5 $2 {[%emt 0:06:49]} (14... Nd7 $16) 15. dxc5 $18 {[%emt 0:00:02]} Nd7 {[%emt 0:00:13][%cal Bb6d7,Bd7b8,Bb8c6][%mdl 32]} 16. Bb5 {[%emt 0:02:36]} Qc7 {[%emt 0:00:20]} 17. Bxc6 {[%emt 0:10:10]} Qxc6 {[%emt 0:00:14]} 18. Nd4 {[%emt 0:00:08]} Qa6 {[%emt 0:02:09]} (18... Qxc5 $2 19. Nxe6 $1 {[%mdl 512]} Qc6 20. Nxg7+ Kd8 21. Nf5) 19. Qg3 {[%emt 0:03:18]} Rg8 {[%emt 0:03:18]} 20. c6 {[%emt 0:09:53]} Nb8 {[%emt 0:02:20]} 21. h6 {[%emt 0:00:06]} g6 {[%emt 0:01:51]} 22. c7 {[%emt 0:02:03]} Nc6 {[%emt 0:21:46]} 23. Qg5 {[%emt 0:00:08] White is more active.} Bd7 $2 {[%emt 0:01:56][%mdl 8192]} (23... Bb7 $16) 24. Nf3 $1 {[%emt 0:01:17] Hoping for Qf6.} d4 {[%emt 0:14:37] [#]} 25. Nxd4 {[%emt 0:00:45]} (25. Qf6 $1 $18 {[%cal Of3g5] and the rest is easy. Threatens to win with Ng5!} Ne7 26. Ng5 $1) 25... Nxd4 $16 {[%emt 0:06:01]} 26. Bxd4 $40 {[%emt 0:00:03][%mdl 128] Intending Bc5 and mate. White attacks with force.} Qc6 {[%emt 0:00:27] Prevents Bc5. White must now prevent ...Qe4+.} 27. O-O {[%emt 0:00:32]} Qxc7 {[%emt 0:00:17]} 28. Rad1 {[%emt 0:04:57]} Bb5 {[%emt 0:08:27]} 29. Rfe1 {[%emt 0:00:54]} Qd8 {[%emt 0:06:48]} 30. Qg3 {[%emt 0:02:51] And now Bf2 would win.} Qc7 {[%emt 0:02:50]} (30... Bc6 {was necessary.} 31. Bxc3 Bd5) 31. Bf2 {[%emt 0:01:36]} (31. Qf2 $142) 31... f5 $2 {[%emt 0:02:53]} (31... Rd8 32. Qe3 Rd7 33. Rxd7 Kxd7) 32. exf6 $18 {[%emt 0:04:31] Qg5 would kill now.} Kf7 {[%emt 0:00:05] [#]} 33. Qg5 {[%emt 0:01:08]} (33. Rxe6 $142 $3 {[%cal Og3g5][%mdl 512] White threatens Qg5! and mate.} Rge8 (33... Rae8 34. Red6) 34. Red6) 33... Bc6 {[%emt 0:01:44] [#]} (33... Bd7 $142 34. Qe5 Qb7) 34. Rxe6 $3 {[%emt 0:01:04][%mdl 512] Threatening mate with Re7+.} Rae8 {[%emt 0:04:20] Inhibits Re7+.} 35. Red6 {[%emt 0:02:25] White wants to mate with Qc5.} Re2 {[%emt 0:06:24]} 36. Qg4 {[%emt 0:01:44]} (36. Qc5 $142 Rge8 37. Rxc6 Qxf4 38. Qa7+ R2e7 39. fxe7 Qe4 40. Rc7 Qf4 41. Qc5) 36... Rd2 {[%emt 0:00:35]} 37. Qe6+ {[%emt 0:00:16] White mates.} Kf8 {[%emt 0:00:06] [#]} 38. Rd8+ $1 {[%emt 0:42:32][%mdl 512]} Qxd8 {[%emt 0:00:22]} 39. Bc5+ {[%emt 0:00:00]} Qe7 {[%emt 0:00:08]} 40. Qxe7# {[%emt 0:00:00] Weighted Error Value: White=0.45/Black=1.27} 1-0